[Event "Early-Titled-Tuesday-Blitz-January-16-2024"]
[Site "Chess.com"]
[Date "2024.01.16"]
[Round "4"]
[White "temiksmozg"]
[Black "Oleksandr_Bortnyk"]
[Result "0-1"]
[WhiteElo "2632"]
[BlackElo "3095"]
[TimeControl "180+1"]
[EndTime "8:39:08 PST"]
[Termination "Oleksandr_Bortnyk won by resignation"]

1. d4 {[%clk 0:03:00.9]} 1... d6 {[%clk 0:02:59.7]} 2. c4 {[%clk 0:03:01.2]}
2... e5 {[%clk 0:02:59.9]} 3. e3 {[%clk 0:02:59.5]} 3... Nc6 {[%clk 0:02:57.1]}
4. Nf3 {[%clk 0:02:58.5]} 4... Bf5 {[%clk 0:02:57.4]} 5. Be2 {[%clk 0:02:51.8]}
5... Nf6 {[%clk 0:02:52.7]} 6. O-O {[%clk 0:02:51.2]} 6... Be7 {[%clk
0:02:52.7]} 7. Nc3 {[%clk 0:02:49.1]} 7... O-O {[%clk 0:02:52.3]} 8. b3 {[%clk
0:02:47.1]} 8... exd4 {[%clk 0:02:48.9]} 9. Nxd4 {[%clk 0:02:46.3]} 9... Nxd4
{[%clk 0:02:49]} 10. exd4 {[%clk 0:02:45.2]} 10... d5 {[%clk 0:02:47.3]} 11. c5
{[%clk 0:02:44.9]} 11... Ne4 {[%clk 0:02:45.4]} 12. Nxe4 {[%clk 0:02:43.4]}
12... Bxe4 {[%clk 0:02:46]} 13. Bf4 {[%clk 0:02:36.5]} 13... Bf6 {[%clk
0:02:44.3]} 14. Qd2 {[%clk 0:02:28.9]} 14... Re8 {[%clk 0:02:43.4]} 15. Rfe1
{[%clk 0:02:28.3]} 15... Qd7 {[%clk 0:02:40.3]} 16. Bg3 {[%clk 0:02:24.8]} 16...
a5 {[%clk 0:02:29.9]} 17. Rad1 {[%clk 0:02:22.6]} 17... a4 {[%clk 0:02:30.2]}
18. b4 {[%clk 0:02:21.8]} 18... a3 {[%clk 0:02:29.4]} 19. b5 {[%clk 0:02:17.2]}
19... Ra4 {[%clk 0:02:26.1]} 20. Qc3 {[%clk 0:02:14.2]} 20... c6 {[%clk
0:02:24]} 21. bxc6 {[%clk 0:01:54.8]} 21... bxc6 {[%clk 0:02:24.9]} 22. Bf1
{[%clk 0:01:54.9]} 22... h5 {[%clk 0:02:21.2]} 23. f3 {[%clk 0:01:49.6]} 23...
h4 {[%clk 0:02:13.7]} 24. Bf2 {[%clk 0:01:46.8]} 24... Bg6 {[%clk 0:02:08.4]}
25. Rxe8+ {[%clk 0:01:41.3]} 25... Qxe8 {[%clk 0:02:09.3]} 26. Qb3 {[%clk
0:01:41.3]} 26... Ra8 {[%clk 0:02:04.7]} 27. Bd3 {[%clk 0:01:22]} 27... Bxd3
{[%clk 0:02:02.5]} 28. Qxd3 {[%clk 0:01:22.9]} 28... Rb8 {[%clk 0:01:48.7]} 29.
Qxa3 {[%clk 0:01:12.9]} 29... Qe2 {[%clk 0:01:48]} 30. Re1 {[%clk 0:01:13]}
30... Bxd4 {[%clk 0:01:46.5]} 0-1

[Event "Early-Titled-Tuesday-Blitz-January-16-2024"]
[Site "Chess.com"]
[Date "2024.01.16"]
[Round "4"]
[White "profedechess93"]
[Black "HamedWafa4"]
[Result "1-0"]
[WhiteElo "2641"]
[BlackElo "2846"]
[TimeControl "180+1"]
[EndTime "8:39:09 PST"]
[Termination "profedechess93 won by checkmate"]

1. e4 {[%clk 0:03:00.9]} 1... e5 {[%clk 0:02:53.6]} 2. Nf3 {[%clk 0:03:00.5]}
2... Nc6 {[%clk 0:02:53.1]} 3. Bc4 {[%clk 0:02:59.5]} 3... Bc5 {[%clk
0:02:48.1]} 4. b4 {[%clk 0:02:59.2]} 4... Bxb4 {[%clk 0:02:47.5]} 5. c3 {[%clk
0:02:59.3]} 5... Be7 {[%clk 0:02:46.2]} 6. d4 {[%clk 0:02:59.9]} 6... d6 {[%clk
0:02:45.5]} 7. Qb3 {[%clk 0:02:59.5]} 7... Na5 {[%clk 0:02:33.3]} 8. Bxf7+
{[%clk 0:02:58.5]} 8... Kf8 {[%clk 0:02:33.3]} 9. Qa4 {[%clk 0:02:59.4]} 9...
Kxf7 {[%clk 0:02:30.8]} 10. Qxa5 {[%clk 0:02:58.7]} 10... c6 {[%clk 0:02:26.8]}
11. Qa4 {[%clk 0:02:57.4]} 11... Bg4 {[%clk 0:02:16.6]} 12. Nbd2 {[%clk
0:02:55.5]} 12... b5 {[%clk 0:02:08.2]} 13. Qb3+ {[%clk 0:02:47.7]} 13... Be6
{[%clk 0:02:07.8]} 14. Qc2 {[%clk 0:02:37.6]} 14... Bf6 {[%clk 0:02:07.3]} 15.
O-O {[%clk 0:02:30.3]} 15... Ne7 {[%clk 0:02:06.4]} 16. Bb2 {[%clk 0:02:21.4]}
16... Rf8 {[%clk 0:01:56.3]} 17. c4 {[%clk 0:02:18.1]} 17... Ng6 {[%clk
0:01:56.6]} 18. d5 {[%clk 0:02:04.9]} 18... cxd5 {[%clk 0:01:50.8]} 19. exd5
{[%clk 0:02:05.6]} 19... Bg4 {[%clk 0:01:47.6]} 20. cxb5 {[%clk 0:01:54.7]}
20... Kg8 {[%clk 0:01:46.1]} 21. h3 {[%clk 0:01:51.5]} 21... Bd7 {[%clk
0:01:45.1]} 22. a4 {[%clk 0:01:49.8]} 22... Rc8 {[%clk 0:01:41.6]} 23. Qb3
{[%clk 0:01:49]} 23... Nf4 {[%clk 0:01:33.8]} 24. Ne4 {[%clk 0:01:34.5]} 24...
Bf5 {[%clk 0:01:32.1]} 25. Ng3 {[%clk 0:01:31]} 25... Bd3 {[%clk 0:01:26.8]} 26.
Rfc1 {[%clk 0:01:26.1]} 26... Qb6 {[%clk 0:01:26.5]} 27. Rxc8 {[%clk 0:01:14.6]}
27... Rxc8 {[%clk 0:01:27.4]} 28. Rc1 {[%clk 0:01:14.6]} 28... Rxc1+ {[%clk
0:01:18.5]} 29. Bxc1 {[%clk 0:01:15.5]} 29... Qc7 {[%clk 0:01:19.1]} 30. Bxf4
{[%clk 0:01:13]} 30... Bc2 {[%clk 0:01:13.2]} 31. Qe3 {[%clk 0:01:10.3]} 31...
exf4 {[%clk 0:01:12.7]} 32. Qe8# {[%clk 0:01:10.4]} 1-0

[Event "Early-Titled-Tuesday-Blitz-January-16-2024"]
[Site "Chess.com"]
[Date "2024.01.16"]
[Round "4"]
[White "Bushonica"]
[Black "MIss_MIaMI"]
[Result "0-1"]
[WhiteElo "1810"]
[BlackElo "2422"]
[TimeControl "180+1"]
[EndTime "8:39:10 PST"]
[Termination "MIss_MIaMI won by resignation"]

1. e4 {[%clk 0:02:55.5]} 1... c5 {[%clk 0:03:00]} 2. Nf3 {[%clk 0:02:55.2]} 2...
e6 {[%clk 0:03:00.6]} 3. d4 {[%clk 0:02:54.2]} 3... cxd4 {[%clk 0:03:01.5]} 4.
Nxd4 {[%clk 0:02:54.1]} 4... a6 {[%clk 0:03:02.2]} 5. c4 {[%clk 0:02:50.9]} 5...
Nf6 {[%clk 0:03:01.1]} 6. Nc3 {[%clk 0:02:50.8]} 6... Bb4 {[%clk 0:03:00.8]} 7.
Bd3 {[%clk 0:02:50.2]} 7... Nc6 {[%clk 0:02:54.2]} 8. Nf3 {[%clk 0:02:47.5]}
8... d6 {[%clk 0:02:41.7]} 9. O-O {[%clk 0:02:46.9]} 9... O-O {[%clk 0:02:41.7]}
10. Bg5 {[%clk 0:02:45.5]} 10... h6 {[%clk 0:02:41.5]} 11. Bh4 {[%clk
0:02:44.9]} 11... Ne5 {[%clk 0:02:37.9]} 12. Nxe5 {[%clk 0:02:43.7]} 12... dxe5
{[%clk 0:02:38.8]} 13. Qe2 {[%clk 0:02:40.9]} 13... Be7 {[%clk 0:02:35]} 14.
Rad1 {[%clk 0:02:38.2]} 14... Qc7 {[%clk 0:02:34.9]} 15. Bg3 {[%clk 0:02:36.5]}
15... Bd7 {[%clk 0:02:25.6]} 16. f4 {[%clk 0:02:25.5]} 16... Bd6 {[%clk
0:01:58.3]} 17. fxe5 {[%clk 0:02:16.1]} 17... Bxe5 {[%clk 0:01:59.2]} 18. Bxe5
{[%clk 0:02:15.6]} 18... Qxe5 {[%clk 0:02:00.1]} 19. Qf3 {[%clk 0:02:11.1]}
19... Bc6 {[%clk 0:01:56.8]} 20. h3 {[%clk 0:02:05.4]} 20... Rad8 {[%clk
0:01:56.3]} 21. Bc2 {[%clk 0:02:02.3]} 21... Qc5+ {[%clk 0:01:46]} 22. Kh1
{[%clk 0:02:01.4]} 22... Qxc4 {[%clk 0:01:42.5]} 23. Qe3 {[%clk 0:01:55.3]}
23... Rxd1 {[%clk 0:01:31.7]} 24. Rxd1 {[%clk 0:01:54.3]} 24... e5 {[%clk
0:01:29.8]} 25. Bb3 {[%clk 0:01:52.5]} 25... Qb4 {[%clk 0:01:27]} 26. Kh2 {[%clk
0:01:38.4]} 26... Nxe4 {[%clk 0:01:22.4]} 27. Nxe4 {[%clk 0:01:37.8]} 27... Qxe4
{[%clk 0:01:23.3]} 28. Qf2 {[%clk 0:01:35.8]} 28... Qf4+ {[%clk 0:01:15.8]} 29.
Qxf4 {[%clk 0:01:32.7]} 29... exf4 {[%clk 0:01:16.7]} 30. Rf1 {[%clk 0:01:32.6]}
30... g5 {[%clk 0:01:16.9]} 31. h4 {[%clk 0:01:31.8]} 31... Kg7 {[%clk
0:01:16.2]} 32. Kh3 {[%clk 0:01:31.2]} 32... Bd7+ {[%clk 0:01:14]} 33. g4 {[%clk
0:01:26]} 0-1

[Event "Early-Titled-Tuesday-Blitz-January-16-2024"]
[Site "Chess.com"]
[Date "2024.01.16"]
[Round "4"]
[White "Brahianzevich"]
[Black "Zakaryan_David"]
[Result "1-0"]
[WhiteElo "2429"]
[BlackElo "2659"]
[TimeControl "180+1"]
[EndTime "8:39:14 PST"]
[Termination "Brahianzevich won by resignation"]

1. e4 {[%clk 0:02:58.1]} 1... c5 {[%clk 0:02:55.4]} 2. Nf3 {[%clk 0:02:57.6]}
2... e6 {[%clk 0:02:55.9]} 3. Nc3 {[%clk 0:02:57.2]} 3... Nc6 {[%clk 0:02:54.5]}
4. Be2 {[%clk 0:02:53.8]} 4... Nf6 {[%clk 0:02:53.9]} 5. d4 {[%clk 0:02:49]}
5... cxd4 {[%clk 0:02:52.3]} 6. Nxd4 {[%clk 0:02:49.9]} 6... Qc7 {[%clk
0:02:52.4]} 7. O-O {[%clk 0:02:49]} 7... a6 {[%clk 0:02:52.7]} 8. Be3 {[%clk
0:02:47.8]} 8... Be7 {[%clk 0:02:51.8]} 9. f4 {[%clk 0:02:47.5]} 9... d6 {[%clk
0:02:52]} 10. Kh1 {[%clk 0:02:46.2]} 10... O-O {[%clk 0:02:50.2]} 11. Qe1 {[%clk
0:02:43.3]} 11... Nxd4 {[%clk 0:02:50.3]} 12. Bxd4 {[%clk 0:02:42.9]} 12... b5
{[%clk 0:02:50.8]} 13. Qg3 {[%clk 0:02:38.7]} 13... Bb7 {[%clk 0:02:29.1]} 14.
Bd3 {[%clk 0:02:21.7]} 14... d5 {[%clk 0:01:44]} 15. exd5 {[%clk 0:01:58.7]}
15... exd5 {[%clk 0:01:25.8]} 16. Rae1 {[%clk 0:01:53.7]} 16... Rfe8 {[%clk
0:01:15.4]} 17. Qh3 {[%clk 0:01:38.2]} 17... Ne4 {[%clk 0:01:02.6]} 18. Nxe4
{[%clk 0:01:34.4]} 18... dxe4 {[%clk 0:01:01.9]} 19. Bxe4 {[%clk 0:01:35.3]}
19... Bxe4 {[%clk 0:01:02]} 20. Rxe4 {[%clk 0:01:33.6]} 20... Qxc2 {[%clk
0:01:00]} 21. Rfe1 {[%clk 0:01:30.1]} 21... Bf8 {[%clk 0:00:50.1]} 22. Rxe8
{[%clk 0:01:23.6]} 22... Rxe8 {[%clk 0:00:49.2]} 23. Rxe8 {[%clk 0:01:20.8]}
23... Qb1+ {[%clk 0:00:44.7]} 24. Bg1 {[%clk 0:01:18.7]} 1-0

[Event "Early-Titled-Tuesday-Blitz-January-16-2024"]
[Site "Chess.com"]
[Date "2024.01.16"]
[Round "4"]
[White "Genghis_K"]
[Black "Anton_Demchenko"]
[Result "0-1"]
[WhiteElo "2847"]
[BlackElo "2988"]
[TimeControl "180+1"]
[EndTime "8:39:16 PST"]
[Termination "Anton_Demchenko won by resignation"]

1. e4 {[%clk 0:03:00.9]} 1... e5 {[%clk 0:02:59.7]} 2. Nf3 {[%clk 0:02:59.9]}
2... Nc6 {[%clk 0:02:59.8]} 3. Bb5 {[%clk 0:03:00.2]} 3... a6 {[%clk 0:02:58.9]}
4. Ba4 {[%clk 0:03:00.8]} 4... Nge7 {[%clk 0:02:59.2]} 5. O-O {[%clk 0:02:59]}
5... Ng6 {[%clk 0:02:59.3]} 6. c3 {[%clk 0:02:57.8]} 6... d6 {[%clk 0:02:59.5]}
7. d4 {[%clk 0:02:57.1]} 7... Bd7 {[%clk 0:03:00.1]} 8. Be3 {[%clk 0:02:55]}
8... Be7 {[%clk 0:03:00.2]} 9. Nbd2 {[%clk 0:02:55.2]} 9... O-O {[%clk
0:03:00.4]} 10. Re1 {[%clk 0:02:55.6]} 10... b5 {[%clk 0:03:00]} 11. Bb3 {[%clk
0:02:54.9]} 11... exd4 {[%clk 0:03:00.6]} 12. cxd4 {[%clk 0:02:54.8]} 12... Na5
{[%clk 0:03:01]} 13. Bc2 {[%clk 0:02:54.5]} 13... c5 {[%clk 0:03:01.7]} 14. d5
{[%clk 0:02:48.3]} 14... Bf6 {[%clk 0:02:59.4]} 15. Rb1 {[%clk 0:02:48.8]} 15...
Re8 {[%clk 0:02:54.7]} 16. b3 {[%clk 0:02:44.8]} 16... Bc3 {[%clk 0:02:54.4]}
17. Re2 {[%clk 0:02:42.8]} 17... b4 {[%clk 0:02:48.3]} 18. Nf1 {[%clk
0:02:40.1]} 18... Bb5 {[%clk 0:02:39.1]} 19. Bd3 {[%clk 0:02:38.8]} 19... c4
{[%clk 0:02:39.2]} 20. bxc4 {[%clk 0:02:32.4]} 20... Nxc4 {[%clk 0:02:39.1]} 21.
Ng3 {[%clk 0:02:31.6]} 21... Nxe3 {[%clk 0:02:25.2]} 22. Rxe3 {[%clk 0:02:30.5]}
22... Nf4 {[%clk 0:02:20.4]} 23. Bc2 {[%clk 0:02:21.6]} 23... Qf6 {[%clk
0:02:07.5]} 24. Nf5 {[%clk 0:01:53.7]} 24... Bd7 {[%clk 0:01:54.5]} 25. N5d4
{[%clk 0:01:45.3]} 25... Bg4 {[%clk 0:01:51.3]} 26. h3 {[%clk 0:01:34.2]} 26...
Bxh3 {[%clk 0:01:25]} 27. Rxc3 {[%clk 0:01:10.5]} 27... bxc3 {[%clk 0:01:07.8]}
28. gxh3 {[%clk 0:01:10.6]} 28... Qg6+ {[%clk 0:01:06.7]} 29. Kf1 {[%clk
0:01:11.2]} 29... Qg2+ {[%clk 0:01:05.9]} 30. Ke1 {[%clk 0:01:12]} 30... Qh1+
{[%clk 0:01:04.9]} 0-1

[Event "Early-Titled-Tuesday-Blitz-January-16-2024"]
[Site "Chess.com"]
[Date "2024.01.16"]
[Round "4"]
[White "JoliyRoger"]
[Black "MasterofMasters2006"]
[Result "1-0"]
[WhiteElo "2473"]
[BlackElo "2229"]
[TimeControl "180+1"]
[EndTime "8:39:16 PST"]
[Termination "JoliyRoger won by resignation"]

1. d4 {[%clk 0:03:00.9]} 1... Nf6 {[%clk 0:02:55.5]} 2. c4 {[%clk 0:03:00.3]}
2... e6 {[%clk 0:02:55.1]} 3. Nf3 {[%clk 0:02:59.2]} 3... b6 {[%clk 0:02:53]} 4.
a3 {[%clk 0:02:59]} 4... Ba6 {[%clk 0:02:52.3]} 5. Qc2 {[%clk 0:02:57]} 5... Be7
{[%clk 0:02:52.1]} 6. b3 {[%clk 0:02:53]} 6... O-O {[%clk 0:02:52.4]} 7. Bb2
{[%clk 0:02:53.6]} 7... d5 {[%clk 0:02:51.5]} 8. Nbd2 {[%clk 0:02:53.7]} 8...
Nbd7 {[%clk 0:02:51.7]} 9. e3 {[%clk 0:02:53.2]} 9... Rc8 {[%clk 0:02:51.3]} 10.
Bd3 {[%clk 0:02:47.4]} 10... Re8 {[%clk 0:02:41.5]} 11. O-O {[%clk 0:02:46.7]}
11... dxc4 {[%clk 0:02:34.7]} 12. bxc4 {[%clk 0:02:37.8]} 12... Bb7 {[%clk
0:02:34.6]} 13. e4 {[%clk 0:02:34.3]} 13... c5 {[%clk 0:02:22.6]} 14. e5 {[%clk
0:02:26.8]} 14... cxd4 {[%clk 0:02:18.7]} 15. exf6 {[%clk 0:02:25.3]} 15... Nxf6
{[%clk 0:02:19.6]} 16. Bxd4 {[%clk 0:02:06.2]} 16... b5 {[%clk 0:02:07.4]} 17.
c5 {[%clk 0:02:04.9]} 17... a6 {[%clk 0:01:45.9]} 18. Rfd1 {[%clk 0:01:51.9]}
18... Nd5 {[%clk 0:01:42.3]} 19. Bxh7+ {[%clk 0:01:48.6]} 19... Kh8 {[%clk
0:01:40.4]} 20. Be4 {[%clk 0:01:47.7]} 20... f5 {[%clk 0:01:33.4]} 21. Bxd5
{[%clk 0:01:46.8]} 21... Qxd5 {[%clk 0:01:34.3]} 22. Qb2 {[%clk 0:01:46.7]}
22... Bf8 {[%clk 0:01:32.6]} 23. Nf1 {[%clk 0:01:45]} 23... Qe4 {[%clk
0:01:29.2]} 24. Ng3 {[%clk 0:01:44]} 24... Qg4 {[%clk 0:01:29.3]} 25. Ne5 {[%clk
0:01:43.4]} 25... Qh4 {[%clk 0:01:25.2]} 26. Nf7+ {[%clk 0:01:37.1]} 26... Kg8
{[%clk 0:01:24.9]} 27. Nd6 {[%clk 0:01:37.8]} 27... Bxd6 {[%clk 0:01:20.6]} 28.
cxd6 {[%clk 0:01:38]} 28... Rcd8 {[%clk 0:01:20.9]} 29. Bxg7 {[%clk 0:01:33.7]}
29... Rd7 {[%clk 0:01:21.8]} 30. Bf6 {[%clk 0:01:32.8]} 30... Qh6 {[%clk
0:01:20]} 31. Qe5 {[%clk 0:01:25.6]} 31... f4 {[%clk 0:01:08.8]} 32. Bg5 {[%clk
0:01:24.8]} 32... Qg6 {[%clk 0:01:05.8]} 33. Bxf4 {[%clk 0:01:22.5]} 33... Rg7
{[%clk 0:01:04.9]} 1-0

[Event "Early-Titled-Tuesday-Blitz-January-16-2024"]
[Site "Chess.com"]
[Date "2024.01.16"]
[Round "4"]
[White "Willi_Skibbe"]
[Black "JiaHaoxiang"]
[Result "0-1"]
[WhiteElo "2394"]
[BlackElo "2614"]
[TimeControl "180+1"]
[EndTime "8:39:25 PST"]
[Termination "JiaHaoxiang won by resignation"]

1. e4 {[%clk 0:03:00.9]} 1... c5 {[%clk 0:02:59.3]} 2. c3 {[%clk 0:03:00.7]}
2... d5 {[%clk 0:02:57.8]} 3. exd5 {[%clk 0:03:00.4]} 3... Qxd5 {[%clk
0:02:57.3]} 4. d4 {[%clk 0:03:00.8]} 4... Nf6 {[%clk 0:02:56.2]} 5. Nf3 {[%clk
0:03:01.1]} 5... e6 {[%clk 0:02:56.2]} 6. Na3 {[%clk 0:02:59.4]} 6... Nc6 {[%clk
0:02:53]} 7. Be2 {[%clk 0:02:40.1]} 7... cxd4 {[%clk 0:02:42.6]} 8. Nb5 {[%clk
0:02:40]} 8... Qd8 {[%clk 0:02:40.2]} 9. Nbxd4 {[%clk 0:02:38.7]} 9... Nxd4
{[%clk 0:02:39.9]} 10. Qxd4 {[%clk 0:02:38.2]} 10... Qxd4 {[%clk 0:02:36.2]} 11.
Nxd4 {[%clk 0:02:39.1]} 11... Be7 {[%clk 0:02:35.9]} 12. Bf3 {[%clk 0:02:21.1]}
12... a6 {[%clk 0:02:31.9]} 13. O-O {[%clk 0:02:04.8]} 13... O-O {[%clk
0:02:21.1]} 14. c4 {[%clk 0:02:04.3]} 14... e5 {[%clk 0:02:19.8]} 15. Nc2 {[%clk
0:02:03.9]} 15... Bf5 {[%clk 0:02:18.4]} 16. Ne3 {[%clk 0:02:02.2]} 16... Bd3
{[%clk 0:02:18.5]} 17. Rd1 {[%clk 0:02:00.8]} 17... e4 {[%clk 0:02:18.3]} 18. b3
{[%clk 0:01:51.8]} 18... Rfd8 {[%clk 0:02:16.2]} 19. Bg4 {[%clk 0:01:45.1]}
19... Nxg4 {[%clk 0:02:15.9]} 20. Nxg4 {[%clk 0:01:44.5]} 20... Be2 {[%clk
0:02:14]} 21. Rxd8+ {[%clk 0:01:43]} 21... Rxd8 {[%clk 0:02:14.4]} 22. Ne3
{[%clk 0:01:43.5]} 22... Bf6 {[%clk 0:02:13.7]} 23. Rb1 {[%clk 0:01:34.3]} 23...
Bd3 {[%clk 0:02:13.7]} 24. Rb2 {[%clk 0:01:34.4]} 24... Bxb2 {[%clk 0:02:13.5]}
25. Bxb2 {[%clk 0:01:35.3]} 25... Bb1 {[%clk 0:02:13.5]} 26. a3 {[%clk
0:01:28.7]} 26... Ba2 {[%clk 0:02:13.1]} 27. b4 {[%clk 0:01:27.9]} 27... Bxc4
{[%clk 0:02:13.1]} 28. h4 {[%clk 0:01:26.1]} 28... Be6 {[%clk 0:02:13.4]} 29.
Kh2 {[%clk 0:01:21.3]} 29... Rd2 {[%clk 0:02:13.8]} 30. Bd4 {[%clk 0:01:20.4]}
30... Rxf2 {[%clk 0:02:13.4]} 31. Kg3 {[%clk 0:01:20.9]} 31... Ra2 {[%clk
0:02:13.2]} 32. Bc5 {[%clk 0:01:20.8]} 32... Rxa3 {[%clk 0:02:11.9]} 33. Kf4
{[%clk 0:01:21.3]} 33... f5 {[%clk 0:02:07.9]} 34. Nc2 {[%clk 0:01:14.9]} 34...
Ra2 {[%clk 0:02:05.3]} 35. Nd4 {[%clk 0:01:15.2]} 35... Bd7 {[%clk 0:02:05.1]}
36. g3 {[%clk 0:01:14.2]} 36... Kf7 {[%clk 0:02:01.8]} 37. g4 {[%clk 0:01:11.2]}
37... fxg4 {[%clk 0:02:01.2]} 38. Kxe4 {[%clk 0:01:11.5]} 38... g3 {[%clk
0:02:01.7]} 39. Kf4 {[%clk 0:01:07.5]} 39... g2 {[%clk 0:02:01.4]} 40. Nf3
{[%clk 0:01:08.1]} 40... Bc6 {[%clk 0:02:00.2]} 41. Ng5+ {[%clk 0:01:05.9]}
41... Kg6 {[%clk 0:02:00.1]} 42. Ne6 {[%clk 0:01:03.4]} 42... Ra1 {[%clk
0:01:58]} 43. Nf8+ {[%clk 0:01:02.6]} 43... Kf7 {[%clk 0:01:58]} 44. Nxh7 {[%clk
0:01:02.3]} 44... g1=Q {[%clk 0:01:57.9]} 45. Bxg1 {[%clk 0:01:03]} 45... Rxg1
{[%clk 0:01:58.3]} 46. Ng5+ {[%clk 0:01:03.9]} 46... Kg6 {[%clk 0:01:58.3]} 47.
Nh3 {[%clk 0:00:59.4]} 47... Rb1 {[%clk 0:01:58]} 0-1

[Event "Early-Titled-Tuesday-Blitz-January-16-2024"]
[Site "Chess.com"]
[Date "2024.01.16"]
[Round "4"]
[White "GMFYHR1"]
[Black "Alenzer"]
[Result "1-0"]
[WhiteElo "2460"]
[BlackElo "2123"]
[TimeControl "180+1"]
[EndTime "8:39:28 PST"]
[Termination "GMFYHR1 won by checkmate"]

1. d4 {[%clk 0:03:00.9]} 1... d5 {[%clk 0:02:57.3]} 2. c4 {[%clk 0:03:01]} 2...
dxc4 {[%clk 0:02:57.3]} 3. e3 {[%clk 0:02:58.3]} 3... Nf6 {[%clk 0:02:55.2]} 4.
Bxc4 {[%clk 0:02:58]} 4... a6 {[%clk 0:02:55.6]} 5. Nc3 {[%clk 0:02:57.9]} 5...
e6 {[%clk 0:02:55.6]} 6. Nf3 {[%clk 0:02:58]} 6... b5 {[%clk 0:02:54.9]} 7. Bd3
{[%clk 0:02:57.9]} 7... Bb7 {[%clk 0:02:54.3]} 8. O-O {[%clk 0:02:58.3]} 8... c5
{[%clk 0:02:54.1]} 9. dxc5 {[%clk 0:02:56]} 9... Bxc5 {[%clk 0:02:52.5]} 10. Qe2
{[%clk 0:02:52.1]} 10... O-O {[%clk 0:02:51]} 11. Bc2 {[%clk 0:02:51.7]} 11...
Nc6 {[%clk 0:02:43.9]} 12. b3 {[%clk 0:02:51.4]} 12... Nb4 {[%clk 0:02:36.3]}
13. Bb1 {[%clk 0:02:51.1]} 13... Rc8 {[%clk 0:02:23.5]} 14. Bb2 {[%clk
0:02:50.7]} 14... Qe7 {[%clk 0:02:16.4]} 15. a3 {[%clk 0:02:48.9]} 15... Nbd5
{[%clk 0:02:15.6]} 16. Nxd5 {[%clk 0:02:48.8]} 16... Bxd5 {[%clk 0:02:11.8]} 17.
Bc2 {[%clk 0:02:39.5]} 17... Rfd8 {[%clk 0:02:04.5]} 18. Rfd1 {[%clk 0:02:36]}
18... Ne4 {[%clk 0:01:35.9]} 19. b4 {[%clk 0:02:28.4]} 19... Ba7 {[%clk
0:01:28.8]} 20. Nd4 {[%clk 0:02:25.1]} 20... Bb8 {[%clk 0:01:00.5]} 21. Bxe4
{[%clk 0:02:18.4]} 21... Bxe4 {[%clk 0:01:00.2]} 22. Qg4 {[%clk 0:02:16.6]}
22... f5 {[%clk 0:00:48.4]} 23. Qh3 {[%clk 0:02:11]} 23... Qg5 {[%clk
0:00:39.6]} 24. Nxe6 {[%clk 0:02:06.7]} 24... Rxd1+ {[%clk 0:00:38.3]} 25. Rxd1
{[%clk 0:02:07.3]} 25... Qe7 {[%clk 0:00:12]} 26. Nxg7 {[%clk 0:02:06.7]} 26...
Rc2 {[%clk 0:00:11.8]} 27. Bd4 {[%clk 0:02:04.9]} 27... Ra2 {[%clk 0:00:11.1]}
28. Nh5 {[%clk 0:02:03.8]} 28... Qg5 {[%clk 0:00:06.8]} 29. Nf6+ {[%clk
0:01:59.3]} 29... Kf7 {[%clk 0:00:04.7]} 30. Qxh7+ {[%clk 0:01:59]} 30... Ke6
{[%clk 0:00:03.8]} 31. Qd7# {[%clk 0:01:58.6]} 1-0

[Event "Early-Titled-Tuesday-Blitz-January-16-2024"]
[Site "Chess.com"]
[Date "2024.01.16"]
[Round "4"]
[White "KarstenHansch"]
[Black "ylr5000"]
[Result "0-1"]
[WhiteElo "2649"]
[BlackElo "2453"]
[TimeControl "180+1"]
[EndTime "8:39:29 PST"]
[Termination "ylr5000 won by resignation"]

1. e4 {[%clk 0:03:00.9]} 1... c5 {[%clk 0:02:59.7]} 2. Nf3 {[%clk 0:03:01.1]}
2... d6 {[%clk 0:03:00]} 3. Bb5+ {[%clk 0:03:00.9]} 3... Bd7 {[%clk 0:03:00]} 4.
c4 {[%clk 0:03:01]} 4... Nf6 {[%clk 0:02:59.3]} 5. Nc3 {[%clk 0:03:00.8]} 5...
g6 {[%clk 0:02:59.4]} 6. O-O {[%clk 0:02:58]} 6... Bg7 {[%clk 0:03:00]} 7. d4
{[%clk 0:02:58.4]} 7... cxd4 {[%clk 0:03:00.7]} 8. Nxd4 {[%clk 0:02:59.3]} 8...
O-O {[%clk 0:03:00.7]} 9. Qe2 {[%clk 0:02:57.1]} 9... Nc6 {[%clk 0:03:00.1]} 10.
Be3 {[%clk 0:02:53]} 10... Rc8 {[%clk 0:02:59.3]} 11. Rfd1 {[%clk 0:02:46.7]}
11... Qc7 {[%clk 0:02:56.4]} 12. Rac1 {[%clk 0:02:43.1]} 12... Nxd4 {[%clk
0:02:52.8]} 13. Bxd4 {[%clk 0:02:41.3]} 13... Rfe8 {[%clk 0:02:47]} 14. Bxf6
{[%clk 0:02:30.6]} 14... exf6 {[%clk 0:02:44.1]} 15. Qd3 {[%clk 0:02:13.5]}
15... Bc6 {[%clk 0:02:32.3]} 16. Qxd6 {[%clk 0:01:20.7]} 16... Qa5 {[%clk
0:02:32.3]} 17. Bxc6 {[%clk 0:00:58.1]} 17... bxc6 {[%clk 0:02:32.2]} 18. h3
{[%clk 0:00:47.3]} 18... h5 {[%clk 0:02:03.9]} 19. g3 {[%clk 0:00:44.8]} 19...
h4 {[%clk 0:02:02.8]} 20. c5 {[%clk 0:00:22.3]} 20... hxg3 {[%clk 0:02:00]} 21.
fxg3 {[%clk 0:00:23.2]} 21... Re6 {[%clk 0:01:43.5]} 22. Qd7 {[%clk 0:00:22.5]}
22... Rb8 {[%clk 0:01:41.6]} 23. Nd5 {[%clk 0:00:16]} 23... cxd5 {[%clk
0:01:38.1]} 24. exd5 {[%clk 0:00:16.9]} 24... Re2 {[%clk 0:01:36.4]} 25. c6
{[%clk 0:00:13.4]} 25... Qb6+ {[%clk 0:01:32.7]} 26. Kh1 {[%clk 0:00:11.6]}
26... Qf2 {[%clk 0:01:33.4]} 0-1